Cogmind - Beta 12 *** ADVENTURER MODE // 2023.09.09 @ 00:38:02 Player: Auto Result: Destroyed by G-34 Mercenary with Small Laser Performance ------------- Evolutions (0) 0 Regions Visited (4) 800 Robots Destroyed (38) 190 Value Destroyed (862) 862 Prototype IDs (29) 580 Alien Tech Used (0) 0 Bonus (321) 321 TOTAL SCORE: 2753 Bonus ------- Follower Combat Kills 21 Aligned with FarCom 300 Cogmind --------- Core Integrity 0/250 Matter 268/300 Energy 250/250 System Corruption 0% Temperature Cool (28) Movement Walking (125) Location -9/Mines Parts ------- > --- POWER (1) -------- Ion Engine > --- PROPULSION (2) --- Aluminum Leg Improved Titanium Leg > --- UTILITY (2) ------ Medium Storage Unit 0b10 Alert Chip > --- WEAPON (2) ------- Autogun Light Cannon > --- INVENTORY (10) --- Ion Engine Aluminum Leg Heat Sink Heat Sink Large Storage Unit Experimental Sensor Array Medium Laser Autogun Autogun Mining Laser Peak State ------------ > --- POWER ------------ Improved Ion Engine > --- PROPULSION ------- Aluminum Leg Improved Titanium Leg > --- UTILITY ---------- Medium Storage Unit 0b10 Alert Chip > --- WEAPON ----------- Autogun Autogun > --- INVENTORY -------- Ion Engine Aluminum Leg Heat Sink Heat Sink Large Storage Unit Experimental Sensor Array Medium Laser Particle Gun Autogun Mining Laser [Rating: 20] Favorites ----------- Power Ion Engine Engine Ion Engine Propulsion Aluminum Leg Leg Aluminum Leg Utility Medium Storage Unit Device Improved Heat Sink Storage Medium Storage Unit Processor 0b10 Alert Chip Weapon Autogun Energy Gun Medium Laser Ballistic Gun Autogun Ballistic Cannon Light Cannon Build | -11 -10 -10 -10 -9 ------- Run | Jun Mat Min Exi Min Slots Evolved . | . . . . . Power . | . . . . . Propulsion . | . . . . . Utility . | . . . . . Weapon . | . . . . . Parts Attached 51 | 7 30 7 1 6 Power 9 | 1 4 2 . 2 Engine 9 | 1 4 2 . 2 Core . | . . . . . Reactor . | . . . . . Propulsion 19 | 2 12 3 . 2 Treads . | . . . . . Leg 19 | 2 12 3 . 2 Wheel . | . . . . . Hover . | . . . . . Flight . | . . . . . Utility 7 | 2 3 1 1 . Device 3 | 1 2 . . . Storage 2 | 1 1 . . . Processor 2 | . . 1 1 . Hackware . | . . . . . Protection . | . . . . . Artifact . | . . . . . Weapon 16 | 2 11 1 . 2 Energy Gun 7 | 1 6 . . . Energy Cannon . | . . . . . Ballistic Gun 8 | 1 5 1 . 1 Ballistic Cannon 1 | . . . . 1 Launcher . | . . . . . Special Weapon . | . . . . . Impact Weapon . | . . . . . Slashing Weapon . | . . . . . Piercing Weapon . | . . . . . Special Melee Weapon . | . . . . . Unidentified Prototypes . | . . . . . Parts Lost . | . . . . . Power . | . . . . . Propulsion . | . . . . . Utility . | . . . . . Weapon . | . . . . . Highest Loss Streak . | . . . . . To Critical Strikes . | . . . . . Average Slot Usage (%) 99 | . 98 100 100 100 Engine 13 | . 13 14 14 14 Leg 27 | . 27 28 28 28 Device 7 | . 13 1 . . Storage 14 | . 14 14 14 14 Processor 6 | . . 12 14 14 Energy Gun 6 | . 11 . . . Ballistic Gun 21 | . 16 28 28 25 Naked Turns . | . . . . . Heaviest Build 24 | 15 22 24 23 23 Greatest Support 30 | 20 20 20 20 30 Greatest Overweight (x) 1 | . 1 1 1 1 Average Overweight (x) . | . . 1 1 . Largest Inventory Capacity 10 | 8 10 10 10 10 Average Capacity 9 | 7 9 10 10 10 Most Carried 10 | 8 10 10 10 10 Average Carried 9 | 5 9 10 10 9 Final Capacity 10 | 8 10 10 10 10 Final Carried 10 | 7 10 10 10 10 Class Distribution -------------------- 92% | Mutant 7% | Scavenger-Mutant Dominant Class ---------------- Mutant | -10/Materials Mutant | -10/Mines Mutant | -10/Exiles Mutant | -9/Mines Resources | -11 -10 -10 -10 -9 ----------- Run | Jun Mat Min Exi Min Matter Collected 1133 | 275 486 198 . 174 Remotely . | . . . . . Salvage Created 1182 | 75 572 238 . 297 Parts 79 | 8 34 15 . 22 Haulers Intercepted . | . . . . . Recyclers Shooed 2 | . 2 . . . Parts Field Recycled . | . . . . . Retrieved Matter . | . . . . . Parts Self-Destructed . | . . . . . Prevented . | . . . . . Kills | -11 -10 -10 -10 -9 ------- Run | Jun Mat Min Exi Min Combat Hostiles Destroyed 29 | . 13 7 . 9 Guns 27 | . 13 7 . 7 Cannons 2 | . . . . 2 Classes Destroyed 7 | 1 4 1 . 1 Tunneler 4 | 4 . . . . Recycler 2 | . 1 . . 1 Watcher 3 | . 3 . . . Swarmer 12 | . 3 3 . 6 Grunt 14 | . 10 2 . 2 Brawler 1 | . . . . 1 Sentry 2 | . . 2 . . Best Kill Streak 5 | 2 5 2 . 4 Combat Bots Only 5 | . 5 2 . 3 Max Kills in Single Turn 2 | 1 1 2 . 1 Gunslinging 1 | . . 1 . . Exploded . | . . . . . Melee . | . . . . . Uniques/NPCs Destroyed . | . . . . . Combat | -11 -10 -10 -10 -9 -------- Run | Jun Mat Min Exi Min Damage Taken 1119 | . 463 287 . 369 Core 257 | . 103 85 . 69 Absorbed by Shields . | . . . . . Regen/Repaired (Parts) 21 | . 21 . . . Core Remaining (%) 100 | 100 . . . . Volleys Fired 91 | 5 53 16 . 17 Largest 2 | 2 2 2 . 2 Hottest 88 | 70 88 46 . 58 Shots Fired 182 | 10 106 32 . 34 Gun 175 | 10 106 32 . 27 Cannon 7 | . . . . 7 Launcher . | . . . . . Special . | . . . . . Kinetic 124 | 5 53 32 . 34 Thermal 58 | 5 53 . . . Explosive . | . . . . . Electromagnetic . | . . . . . Robot Hit Streak 39 | 7 39 21 . 9 Robot Miss Streak 2 | . 1 2 . 2 Penetration Max . | . . . . . Secondary Targets 8 | . 4 3 . 1 Max Gunslinging Chain 1 | . 1 1 . 1 Shots Hit Robots 149 | 7 93 24 . 25 Core Hits 54 | 4 29 9 . 12 Critical Kills . | . . . . . Critical Parts Destroyed . | . . . . . Critical Strikes 3 | . 3 . . . Burn 3 | . 3 . . . Melee Attacks . | . . . . . Impact . | . . . . . Slashing . | . . . . . Piercing . | . . . . . Sneak Attacks . | . . . . . Combat Hostiles . | . . . . . Follow-up Attacks . | . . . . . Damage Inflicted 2067 | 97 1220 362 . 388 Guns 1999 | 97 1220 362 . 320 Cannons 68 | . . . . 68 Explosions . | . . . . . Melee . | . . . . . Ramming . | . . . . . Kinetic 1422 | 34 638 362 . 388 Thermal 645 | 63 582 . . . Explosive . | . . . . . Electromagnetic . | . . . . . Impact . | . . . . . Slashing . | . . . . . Piercing . | . . . . . Highest Corruption . | . . . . . Average Corruption . | . . . . . Corruption Purged . | . . . . . Corruption Blocked . | . . . . . Overload Shots . | . . . . . Overflow Damage . | . . . . . Projectiles . | . . . . . Explosions . | . . . . . Melee . | . . . . . Knockbacks . | . . . . . Impact . | . . . . . Kinetic . | . . . . . Secondary . | . . . . . Self-Inflicted Damage . | . . . . . Shots . | . . . . . Rammed . | . . . . . Targets Rammed . | . . . . . Kicked . | . . . . . Crushed . | . . . . . Highest Temperature 153 | 18 153 16 . 67 Average Temperature 39 | 7 50 7 . 20 Received Heat Transfer 510 | . 342 90 . 78 Siege Activations . | . . . . . Robots Corrupted . | . . . . . Combat Hostiles . | . . . . . Parts Fried . | . . . . . Impact Corruptions . | . . . . . Robots Melted . | . . . . . Combat Hostiles . | . . . . . Parts Melted 3 | 1 2 . . . Heat Transferred 2072 | 185 1887 . . . Parts Sabotaged . | . . . . . Parts Stolen . | . . . . . Parts Stripped . | . . . . . Power Chain Reactions . | . . . . . Missiles Intercepted . | . . . . . Alert | -11 -10 -10 -10 -9 ------- Run | Jun Mat Min Exi Min Peak Influence 201 | 20 201 129 . 68 Initial 11 | . 11 . . . Average 36 | 7 31 81 . 27 Maximum Alert Level 1 | . 1 . . . Low Security (%) 99 | 100 99 100 . 100 Level 1 . | . . . . . Level 2 . | . . . . . Level 3 . | . . . . . Level 4 . | . . . . . Level 5 . | . . . . . High Security . | . . . . . Max Security . | . . . . . Squads Dispatched 4 | . 3 . . 1 Investigation 4 | . 3 . . 1 Extermination . | . . . . . Reinforcement . | . . . . . Assault . | . . . . . Garrison . | . . . . . Intercept . | . . . . . Searches Triggered . | . . . . . Construction Impeded . | . . . . . Haulers Reinforced . | . . . . . Active Scanning Responses . | . . . . . Cargo Convoy Interrupts . | . . . . . Stealth | -11 -10 -10 -10 -9 --------- Run | Jun Mat Min Exi Min Distress Signals . | . . . . . Communications Jammed . | . . . . . Distress Signals . | . . . . . Times Spotted 42 | . 20 10 . 12 Peak Tracking Total 5 | . 5 3 . 4 Tactical Retreats 2 | . . . . 2 Traps | -11 -10 -10 -10 -9 ------- Run | Jun Mat Min Exi Min Traps Triggered 5 | . 5 . . . Indirectly . | . . . . . Trap Hack Attempts . | . . . . . Triggered . | . . . . . Disarmed . | . . . . . Reprogrammed . | . . . . . Reused . | . . . . . Traps Extracted . | . . . . . Installed . | . . . . . Triggered . | . . . . . Machines | -11 -10 -10 -10 -9 ---------- Run | Jun Mat Min Exi Min Machines Disabled . | . . . . . Max in Single Turn . | . . . . . Machines Repaired . | . . . . . Machines Sabotaged . | . . . . . Overloaded Fab Kills . | . . . . . Hacking | -11 -10 -10 -10 -9 --------- Run | Jun Mat Min Exi Min Machines Accessed 13 | . 11 . 1 1 Terminals 8 | . 8 . . . Fabricators . | . . . . . Repair Stations 1 | . 1 . . . Recycling Units 2 | . 2 . . . Scanalyzers . | . . . . . Garrison Access . | . . . . . Total Hacks 40 | . 38 . 1 1 Successful 29 | . 27 . 1 1 Failed 11 | . 11 . . . Catastrophic . | . . . . . Database Lockouts . | . . . . . Manual 29 | . 28 . 1 . Terminals 29 | . 29 . . . Fabricators . | . . . . . Repair Stations 2 | . 2 . . . Recycling Units 7 | . 7 . . . Scanalyzers . | . . . . . Garrison Access . | . . . . . Terminal Hacks 13 | . 11 . 1 1 Prototype ID Bank 4 | . 4 . . . Open Door 1 | . . . . 1 Branch Access Points 1 | . 1 . . . Terminal Index 1 | . 1 . . . Recycling Unit Index 1 | . 1 . . . Unreport Threat 1 | . 1 . . . Locate Traps 1 | . 1 . . . Registered Components 1 | . 1 . . . Registered Prototypes 1 | . 1 . . . EX-Prototype ID Bank 1 | . . . 1 . Fabricator Hacks . | . . . . . Repair Station Hacks 2 | . 2 . . . Scan Component 1 | . 1 . . . Repair 1 | . 1 . . . Recycling Unit Hacks 2 | . 2 . . . Retrieve Components 2 | . 2 . . . Scanalyzer . | . . . . . Garrison Access Hacks . | . . . . . Unauthorized Hacks 12 | . 12 . . . Terminals 8 | . 8 . . . Botnet 7 | . 7 . . . Search 1 | . 1 . . . Fabricators . | . . . . . Repair Stations . | . . . . . Recycling Units 4 | . 4 . . . Reject 2 | . 2 . . . Recyclers 1 | . 1 . . . Tunnel 1 | . 1 . . . Scanalyzers . | . . . . . Garrison Access . | . . . . . Data Cores Recovered . | . . . . . Used . | . . . . . Hacking Detections 8 | . 8 . . . Full Trace Events 4 | . 4 . . . Feedback Events . | . . . . . Feedback Blocked . | . . . . . Robot Schematics Acquired . | . . . . . Robots Built . | . . . . . Authchips . | . . . . . Time . | . . . . . Total Robot Build Rating . | . . . . . Part Schematics Acquired . | . . . . . Parts Built . | . . . . . Authchips . | . . . . . Time . | . . . . . Total Part Build Rating . | . . . . . Parts Repaired 1 | . 1 . . . Time 26 | . 26 . . . Parts Recycled . | . . . . . Recycled Matter . | . . . . . Retrieved Matter . | . . . . . Retrieved Components 12 | . 12 . . . Parts Scanalyzed . | . . . . . Part Schematics Acquired . | . . . . . Parts Damaged . | . . . . . Bothacking | -11 -10 -10 -10 -9 ------------ Run | Jun Mat Min Exi Min Used RIF Installer . | . . . . . Robots Hacked . | . . . . . Non-combat . | . . . . . Combat . | . . . . . Robot Hacks Applied . | . . . . . Relay Couplers Released . | . . . . . Fabnet Peak Effective % . | . . . . . Robots Rewired . | . . . . . Allies Hacked . | . . . . . Hacks Repelled . | . . . . . Allies | -11 -10 -10 -10 -9 -------- Run | Jun Mat Min Exi Min Total Allies 3 | . . 3 . . Largest Group 2 | . . 2 2 . Highest-Rated Group 62 | . . 62 62 . Highest-Rated Ally 31 | . . 31 31 . Total Orders . | . . . . . Ally Attacks 10 | . . 10 . . Total Damage 139 | . . 139 . . Kills 3 | . . 3 . . Allies Corrupted . | . . . . . Allies Melted . | . . . . . Intel | -11 -10 -10 -10 -9 ------- Run | Jun Mat Min Exi Min Robot Analysis Total . | . . . . . Derelict Logs Recovered 2 | . . 2 . . Drone Launches . | . . . . . Drone Recoveries . | . . . . . Exploration | -11 -10 -10 -10 -9 ------------- Run | Jun Mat Min Exi Min Turns Passed 5302 | 186 2682 634 582 1218 Spaces Moved 2358 | 126 1210 258 236 528 Core 12 | 12 . . . . Treads . | . . . . . Legs 2346 | 114 1210 258 236 528 Wheels . | . . . . . Hover . | . . . . . Flight . | . . . . . Fastest Speed 50 | 50 120 190 190 125 Average Speed 159 | 113 154 190 190 155 Slowest Speed 190 | 120 190 190 190 190 Overloaded Moves . | . . . . . Propulsion Burnouts . | . . . . . Robots Hopped . | . . . . . Cave-ins Triggered . | . . . . . Exploration Rate (%) 59 | 7 97 54 61 77 Regions Visited 4 Branch Regions 3 Pre-discovered Areas 3 | . 1 2 . . Known Exits Taken 1 | . 1 . . . Unknown Exits Taken 3 | 1 . 1 1 . Scrap Searched 1 | . . . . 1 Spaces Dug . | . . . . . Terrain Destroyed . | . . . . . Melee . | . . . . . Projectile . | . . . . . AOE . | . . . . . Terrain Rammed . | . . . . . Walls Destroyed . | . . . . . Machines Disabled . | . . . . . Actions | -11 -10 -10 -10 -9 --------- Run | Jun Mat Min Exi Min Total 3735 | 159 1933 376 370 897 Wait 1170 | 6 600 91 133 340 Move 2354 | 125 1209 257 235 528 Hop . | . . . . . Pick Up 37 | 15 20 1 . 1 Fast Attach 15 | . 11 2 1 1 Attach 10 | 7 3 . . . Detach . | . . . . . Swap 26 | . 16 5 . 5 Drop 32 | 1 21 4 1 5 Fire 91 | 5 53 16 . 17 Melee . | . . . . . Ram . | . . . . . Kick . | . . . . . Crush . | . . . . . Escape Stasis . | . . . . . Rewire . | . . . . . Trap . | . . . . . Miscellaneous . | . . . . . Route ------- -11/Junkyard -10/Materials (discovered 4 exits: [*Mat x3] / *Min) -10/Mines (discovered 2 exits: [*Mat] / *Exi) -10/Exiles -9/Mines History --------- Turn | Location | Event 5 | -11/Junkyard | Discovered new exit (range 15) 187 | -11/Junkyard | Entered Materials 281 | -10/Materials | Discovered new exit (range 16) 292 | -10/Materials | Identified exit to Mines 305 | -10/Materials | Build established: Mutant 1089 | -10/Materials | Discovered new exit (range 14) 1608 | -10/Materials | Discovered new exit (range 13) 2417 | -10/Materials | Discovered new exit (range 14) 2544 | -10/Materials | Repaired Ion Engine 2869 | -10/Materials | Entered Mines 2885 | -10/Mines | Core integrity fell below 50% 2975 | -10/Mines | Learned location of Mines (-9) 3108 | -10/Mines | Discovered new exit (range 7) 3289 | -10/Mines | Escorted by a lone wolf Derelict 3389 | -10/Mines | Learned location of Recycling (-9) 3391 | -10/Mines | Found a damaged Exp. Sensor Array with a note attached 3395 | -10/Mines | Found Prototype Device 3490 | -10/Mines | Deemed a non-threat by the Exiles lab entrance 3490 | -10/Mines | Discovered new exit (range 5) 3503 | -10/Mines | Entered Exiles 3503 | -10/Exiles | Accompanied by 2 allies 3533 | -10/Exiles | Led the pair of lost Derelicts to a safe place 3563 | -10/Exiles | Met 8R-AWN 3667 | -10/Exiles | Met EX-HEX 3802 | -10/Exiles | Met EX-BIN 3825 | -10/Exiles | Aligned with FarCom system 3826 | -10/Exiles | Given EX-Vault access code 3870 | -10/Exiles | Opened EX-Vault 3886 | -10/Exiles | Found 0b10 Alert Chip 3927 | -10/Exiles | Warned to stay clear of 0b10 Research branches 3982 | -10/Exiles | Met EX-DEC 4056 | -10/Exiles | Discovered new exit (range 14) 4085 | -10/Exiles | Left Exiles lab with 0b10 Alert Chip 4085 | -10/Exiles | Entered Mines 4374 | -9/Mines | Core integrity fell below 20% 4662 | -9/Mines | Met a Derelict shopkeep closing up shop 5303 | -9/Mines | Destroyed by G-34 Mercenary with Small Laser Last Messages --------------- 04964_ Dropped Imp. Ion Engine. 04964_ Acquired Ion Engine. 04966_ Acquired 10 matter. 05011_ K-01 Serf cleans the Seismic Survey Station. 05060_ Searching scrap... 05060_ Found Lgt. Cannon. 05060_ Found Cooling System. 05060_ Found 27 Matter. 05062_ Dropped Particle Gun. 05063_ Acquired Lgt. Cannon. 05065_ Acquired 10 matter. 05151_ Critical hit (Burn: +37). 05154_ G-34 Mercenary destroyed. 05157_ G-47 Trooper destroyed. 05161_ Dropped Aluminum Leg. 05164_ Acquired 33 matter. 05169_ Acquired 1 matter. 05174_ Dropped Ion Engine. 05175_ Acquired 10 matter. 05300_ B-36 Bruiser destroyed. Map ----- +----------------------------------------------------+ | | | | | | | ?????????????????????????????????????????????????? | | ?????????????????????????????????????????????????? | | ???????????????????????????????????????????????### | | ??????????????????????????????????????????????## | | ??????????????????????????????????????????##### | | ??????????????????????????????????????????# | | ??????????????????????????????????????????# ### | | ??????????????????????????????????????????# #?# | | ??????????????????????????????????????????# #?# # | | ???####???????????????????????????????????# #?# # | | #### ###?????????????????????????????????# #?# # | | # ##???????????????????????????????## ### # | | #???????????????????????????????# # | | #???????????????????????????????# # | | #???????????#####???????????????# ###### | | # #???????????# ##??????????????# #????? | | ## #???????????#=! #??????????????# #????? | | ## ####?????????# ##?????????????# #????? | | # = ! #?????????## #?????????????# #????? | | =*%!#?????????## #?????????????# #????? | | ##% ########### #?????????????# #????? | | # !## !##?????????????# #????? | | ## % //@#??????????????# #????? | | ?## [ ################g%#########??????# #????? | | ??# ##??????????????# * #??????# #????? | | ??# ##???????????????#% #????### ###### | | ??# #???????????####?######### #????# # | | ??## ##??????????## #####?????# #????# """ # | | ???############### ##????# #????# """ # | | ??????# #????# #????# """ # | | ??????# ###### ###### = # | | ??????# ## ###### % """ """ # | | ??????# ## #????# ##### ###### """ """ # | | ?????## ## #????## ## #???# #????# """ """ # | | ????## ## #?????###### #### ##???# # | | ##### ##????????## ## #?############? | | #???????## ### ##??????? | | #???????# ## #??????? | | ##??????# #??????? | | #??????## ##??????? | | #???????## ### #???????? | | ### ###????????# ## ##???? #??????? | | #??# #??????????## #### ##?????????????? | | # ###### #???????????#### #??# #??????????????? | | ###??#* =* #??????????????# #??# #??????????????? | | ?????#%#####??????????????# #??# #??????????????? | | ?????#[#???????????????####! #### ##?????????????? | +----------------------------------------------------+ Best States ------------- Heat Dissipation 39 Energy Generation 12 Energy Capacity 265 Matter Stores 300 Matter Capacity 300 Sight Range 16 Terrain Scan Range 16 Terrain Scan Density 10 Resistance: KI 20 Resistance: TH 20 Resistance: EX 20 Resistance: EM 20 Resistance: I 20 Resistance: S 20 Resistance: P 20 Evasion (%) 55 Targeting Accuracy 5 Offensive Hacking 10 Item Schematics ----------------- None Robot Schematics ------------------ None Fabricated ------------ Nothing Alien Tech Used ----------------- None Achievements -------------- None Challenges ------------ None Game ------ Seed FortressEnhancedInitializer Manual? 0 Play Time 00:26:01 Cumulative 47.0 hours Start 2023.09.09 @ 00:12:34 End 2023.09.09 @ 00:38:02 Sessions 1 Manual Loads 0 Difficulty Adventurer Special Mode None Game No. 22 Rogue 0 Adventurer 22 Explorer 0 Win Type - Total 0 Types 0/0/0/0/0/0/0/0/0 Lore% 15 Gallery% 29 Achievement% 28 Wizard Run 0 Options --------- ASCII 0 Keyboard 0 Movement Mouse Keybinds 0 Fullscreen 1 Font 18/SmallcapsGlow Map View 76x50 Tactical HUD 1 Map Filters NONE Filters NONE Steam 1 RUN: 54a06d59-187f-4e1e-82d4-10c9cd4aab0e